fUSD/lending_fUSD_20240719
["ID","MTS","AMOUNT","RATE_DAILY","PERIOD"]
[332653996,1721405501646,-5345.19,0.00033972,14]
[332653997,1721405501660,-1910.19,0.00033972,14]
[332653998,1721405501670,-1194.16,0.00033972,14]
[332653999,1721405501679,-500.0,0.00033972,14]
[332654000,1721405501690,-573.17,0.00033972,14]
[332654001,1721405501700,-500.0,0.00033972,14]
[332654002,1721405501709,-10933.25,0.00033972,14]
[332654003,1721405501719,-500.0,0.00033972,14]
[332654004,1721405501728,-1409.33,0.00033972,14]
[332654005,1721405501737,-500.0,0.00033972,14]
[332654006,1721405501746,-1154.96,0.00033972,14]
[332654007,1721405501755,-3674.93,0.00033972,14]
[332654008,1721405501765,-3354.51,0.00033972,14]
[332654009,1721405501774,-4811.1,0.00033972,14]
[332654010,1721405501784,-1405.5,0.00033972,14]
[332654011,1721405501793,-735.83,0.00033972,14]
[332654012,1721405501803,-1524.71,0.00033972,14]
[332654013,1721405501813,-1682.97,0.00033972,14]
[332654014,1721405501823,-3837.86,0.00033972,14]
[332654015,1721405501832,-500.0,0.00033972,14]
[332654016,1721405501842,-1191.95779073,0.00033972,14]
[332654017,1721405501855,-4647.34220927,0.00033972,14]
[332654018,1721405501864,-500.0,0.00033972,14]
[332654019,1721405501874,-30.17535783,0.00033972,14]
[332654020,1721405501887,-1184.95464217,0.00033972,14]
[332654021,1721405501898,-5878.24,0.00033972,14]
[332654022,1721405501909,-500.0,0.00033972,14]
[332654023,1721405501919,-500.0,0.00033972,14]
[332654024,1721405501929,-500.0,0.00033972,14]
[332654025,1721405501938,-571.29317308,0.00033972,14]
[332654026,1721405501950,-312.81682692,0.00033972,14]
[332654027,1721405501960,-336.56317308,0.00033972,14]
[332654028,1721405501974,-163.43682692,0.00033972,14]
[332654029,1721405501986,-1263.94,0.00033972,14]
[332654030,1721405501996,-500.0,0.00033972,14]
[332654031,1721405502006,-500.0,0.00033972,14]
[332654032,1721405502016,-1861.13,0.00033972,14]
[332654033,1721405502027,-4030.15,0.00033972,14]
[332654034,1721405502036,-575.36,0.00033972,14]
[332654035,1721405502046,-1017.03,0.00033972,14]
[332654036,1721405502058,-500.0,0.00033972,14]
[332654037,1721405502069,-371.49731704,0.00033972,14]
[332654038,1721405502178,-128.50268296,0.00033972,14]
[332654039,1721405502189,-1691.71,0.00033972,14]
[332654040,1721405502198,-500.0,0.00033972,14]
[332654041,1721405502208,-241.6226593,0.00033972,14]
[332654042,1721405502217,-925.16465774,0.00033972,14]
[332654043,1721405502229,-449.07534226,0.00033972,14]
[332654044,1721405502239,-768.4,0.00033972,14]
[332654045,1721405502249,-500.0,0.00033972,14]
[332654046,1721405502261,-1697.84,0.00033972,14]
[332654047,1721405502270,-1287.39241953,0.00033972,14]
[332654048,1721405502282,-1272.30758047,0.00033972,14]
[332654049,1721405502293,-500.0,0.00033972,14]
[332654050,1721405502303,-353.88969166,0.00033972,14]
[332654051,1721405502315,-146.11030834,0.00033972,14]
[332654052,1721405502325,-594.10518886,0.00033972,14]
[332654053,1721405502337,-624.46,0.00033972,14]
[332654054,1721405502347,-1946.59,0.00033972,14]
[332654055,1721405502358,-581.56240613,0.00033972,14]
[332654056,1721405502369,-2272.36,0.00033972,14]
[332654057,1721405502380,-500.0,0.00033972,14]
[332654058,1721405502391,-513.15410444,0.00033972,14]
[332654059,1721405502404,-645.57427519,0.00033972,14]
[332654060,1721405502414,-500.0,0.00033972,14]
[332654061,1721405502424,-1917.13,0.00033972,14]
[332654062,1721405502433,-500.0,0.00033972,14]
[332654063,1721405502443,-500.0,0.00033972,14]
[332654064,1721405502452,-500.0,0.00033972,14]
[332654065,1721405502462,-395.39548824,0.00033972,14]
[332654066,1721405502474,-104.60451176,0.00033972,14]
[332654067,1721405502484,-500.0,0.00033972,14]
[332654068,1721405502495,-1295.80548824,0.00033972,14]
[332654069,1721405502509,-1732.13451176,0.00033972,14]
[332654070,1721405502519,-420.5211476,0.00033972,14]
[332654071,1721405502530,-552.6988524,0.00033972,14]
[332654072,1721405502540,-118.575646,0.00033972,14]
[332654073,1721405502552,-381.424354,0.00033972,14]
[332654074,1721405502561,-71.575646,0.00033972,14]
[332654075,1721405502573,-428.424354,0.00033972,14]
[332654076,1721405502582,-500.0,0.00033972,14]
[332654077,1721405502591,-371.19227391,0.00033972,14]
[332654078,1721405502606,-128.80772609,0.00033972,14]
[332654079,1721405502616,-2408.88,0.00033972,14]
[332654080,1721405502626,-645.52219601,0.00033972,14]
[332654081,1721405502636,-509.44595606,0.00033972,14]
[332654082,1721405502646,-500.0,0.00033972,14]
[332654083,1721405502658,-731.9,0.00033972,14]
[332654084,1721405502667,-646.1,0.00033972,14]
[332654085,1721405502677,-500.0,0.00033972,14]
[332654086,1721405502686,-275.71491132,0.00033972,14]
[332654087,1721405502701,-296.59654864,0.00033972,14]
[332654088,1721405502712,-14.23854004,0.00033972,14]
[332654089,1721405502723,-351.36760096,0.00033972,14]
[332654090,1721405502736,-148.63239904,0.00033972,14]
[332654091,1721405502747,-193.24760096,0.00033972,14]
[332654092,1721405502759,-306.75239904,0.00033972,14]
[332654093,1721405502769,-163.47107613,0.00033972,14]
[332654094,1721405503086,-434.14892387,0.00033972,14]
[332654095,1721405503098,-525.5115541,0.00033972,14]
[332654096,1721405503112,-652.6184459,0.00033972,14]
[332654097,1721405503121,-2668.54,0.00033972,14]
[332654098,1721405503130,-833.33,0.00033972,14]
[332654099,1721405503140,-1314.6,0.00033972,14]
[332654100,1721405503149,-2734.59,0.00033972,14]
[332654101,1721405503160,-2830.23,0.00033972,14]
[332654102,1721405503169,-632.52,0.00033972,14]
[332654103,1721405503178,-1416.89,0.00033972,14]
[332654104,1721405503187,-695.28,0.00033972,120]
[332654105,1721405503196,-500.0,0.00033972,14]
[332654106,1721405503205,-1341.92,0.00033972,14]
[332654107,1721405503215,-4660.25,0.00033972,14]
[332654108,1721405503224,-2241.29,0.00033972,14]
[332654109,1721405503234,-500.0,0.00033972,14]
[332654110,1721405503244,-275.74779305,0.00033972,14]
[332654111,1721405503255,-500.0,0.00033972,14]
[332654112,1721405503266,-957.11,0.00033972,14]
[332654113,1721405503275,-877.56,0.00033972,14]
[332654114,1721405503285,-500.0,0.00033972,14]
[332654115,1721405503294,-1477.9,0.00033972,14]
[332654116,1721405503305,-500.0,0.00033972,14]
[332654117,1721405503315,-500.0,0.00033972,14]
[332654118,1721405503324,-500.0,0.00033972,14]
[332654119,1721405503334,-597.23,0.00033972,14]
[332654120,1721405503343,-500.0,0.00033972,14]
[332654121,1721405503352,-689.3,0.00033972,14]
[332654122,1721405503362,-1046.23,0.00033972,14]
[332654123,1721405503371,-1705.13,0.00033972,14]
[332654124,1721405503380,-500.0,0.00033972,14]
[332654125,1721405503389,-778.74,0.00033972,14]
[332654126,1721405503399,-679.86,0.00033972,14]
[332654127,1721405503410,-500.0,0.00033972,14]
[332654128,1721405503419,-542.8,0.00033972,14]
[332654129,1721405503428,-500.0,0.00033972,14]
[332654130,1721405503437,-500.0,0.00033972,14]
[332654131,1721405503447,-843.49,0.00033972,14]
[332654132,1721405503457,-500.0,0.00033972,14]
[332654133,1721405503466,-196.57,0.00033972,14]
[332654134,1721405503475,-500.0,0.00033972,14]
[332654135,1721405503485,-500.0,0.00033972,14]
[332654136,1721405503494,-500.0,0.00033972,14]
[332654137,1721405503504,-500.0,0.00033972,14]
[332654138,1721405503514,-500.0,0.00033972,14]
[332654139,1721405503525,-500.0,0.00033972,14]
[332654140,1721405503535,-500.0,0.00033972,14]
[332654141,1721405503546,-500.0,0.00033972,14]
[332654142,1721405503556,-500.0,0.00033972,14]
[332654143,1721405503568,-500.0,0.00033972,14]
[332654144,1721405503577,-500.0,0.00033972,14]
[332654145,1721405503588,-754.08,0.00033972,14]
[332654146,1721405503598,-366.48953737,0.00033972,14]
[332654147,1721405503607,-545.47,0.00033972,14]
[332654148,1721405503617,-903.09,0.00033972,14]
[332654149,1721405503627,-2912.7,0.00033972,14]
[332654150,1721405503638,-1000.0,0.00033972,2]
[332654151,1721405503649,-500.0,0.00033972,7]
[332654152,1721405503661,-803.41,0.00033972,14]
[332654153,1721405503670,-3000.0,0.00034,55]
[332654154,1721405503679,-299.08099782,0.00034,7]
[332654155,1721405503689,-1050.0,0.00034,120]
[332654156,1721405503698,-2000.0,0.00034,2]
[332654157,1721405503708,-2000.0,0.00034,2]
[332654158,1721405503717,-220.0,0.00034,120]
[332654159,1721405503728,-2000.0,0.00034,11]
[332654160,1721405503737,-2374.57920775,0.00034,10]
[332654161,1721405503747,-262.00056334,0.00034,120]
[332654162,1721405503756,-2581.54702277,0.00034,30]
[332654163,1721405503766,-2000.0,0.00034,11]
[332654164,1721405503775,-404.0,0.00034,23]
[332654165,1721405503785,-447.79734436,0.00034054,57]
[332654166,1721405503794,-590.75,0.00034054,57]
[332654167,1721405503804,-177.13138484,0.00034055,2]
[332654168,1721405503813,-150.0,0.00034092,120]
[332654169,1721405503823,-1062.2,0.00034097,2]
[332654170,1721405503833,-856.35,0.00034107,14]
[332654171,1721405503843,-607.96646146,0.00034107,14]
[332654172,1721405503853,-200.0,0.00034107,7]
[332654173,1721405503863,-840.65,0.00034107,30]
[332654174,1721405503873,-1529.28,0.00034107,14]
[332654175,1721405503883,-500.0,0.00034107,14]
[332654176,1721405503892,-500.0,0.00034107,14]
[332654177,1721405503901,-867.41,0.00034107,14]
[332654178,1721405503912,-500.0,0.00034109,14]
[332654179,1721405503922,-729.12,0.00034109,14]
[332654180,1721405503931,-500.0,0.00034109,14]
[332654181,1721405503941,-500.0,0.00034109,14]
[332654182,1721405503950,-500.0,0.00034109,14]
[332654183,1721405503959,-964.89,0.00034109,14]
[332654184,1721405503968,-500.0,0.00034109,14]
[332654185,1721405503977,-1397.42,0.00034109,14]
[332654186,1721405503986,-507.4,0.00034109,14]
[332654187,1721405503995,-505.18949657,0.00034109,14]
[332654188,1721405504004,-1273.65,0.00034109,14]
[332654189,1721405504014,-505.80661806,0.00034109,14]
[332654190,1721405504023,-500.0,0.00034109,14]
[332654191,1721405504032,-500.0,0.00034109,14]
[332654192,1721405504041,-792.24,0.00034109,14]
[332654193,1721405504050,-1123.54,0.00034109,14]
[332654194,1721405504059,-2002.14,0.00034109,14]
[332654195,1721405504068,-734.79,0.00034109,14]
[332654196,1721405504077,-525.59,0.00034109,14]
[332654197,1721405504086,-500.0,0.00034109,14]
[332654198,1721405504095,-709.12,0.00034109,14]
[332654199,1721405504105,-500.0,0.00034109,14]
[332654200,1721405504114,-500.0,0.00034109,14]
[332654201,1721405504123,-500.0,0.00034109,14]
[332654202,1721405504132,-500.0,0.00034109,14]
[332654203,1721405504141,-1118.74,0.00034109,14]
[332654204,1721405504151,-1718.26,0.00034109,14]
[332654205,1721405504163,-853.38,0.00034109,14]
[332654206,1721405504172,-1130.69,0.00034109,14]
[332654207,1721405504181,-500.0,0.00034109,14]
[332654208,1721405504194,-500.0,0.00034109,14]
[332654209,1721405504203,-955.27,0.00034109,14]
[332654210,1721405504212,-647.66,0.00034109,14]
[332654211,1721405504221,-500.0,0.00034109,14]
[332654212,1721405504232,-1107.57,0.00034109,14]
[332654213,1721405504241,-500.0,0.00034109,14]
[332654214,1721405504250,-500.0,0.00034109,14]
[332654215,1721405504263,-500.0,0.00034109,14]
[332654216,1721405504272,-546.29,0.00034109,14]
[332654217,1721405504281,-500.0,0.00034109,14]
[332654218,1721405504290,-898.82,0.00034109,14]
[332654219,1721405504299,-500.0,0.00034109,14]
[332654220,1721405504309,-500.0,0.00034109,14]
[332654221,1721405504319,-500.0,0.00034109,14]
[332654222,1721405504328,-500.0,0.00034109,14]
[332654223,1721405504339,-210.62483511,0.00034109,14]
[332654224,1721405504349,-500.0,0.00034109,14]
[332654225,1721405504358,-500.0,0.00034109,14]
[332654226,1721405504367,-500.0,0.00034109,14]
[332654227,1721405504376,-479.28379204,0.00034109,14]
[332654228,1721405504385,-500.0,0.00034109,14]
[332654229,1721405504394,-593.12,0.00034109,14]
[332654230,1721405504405,-500.0,0.00034109,14]
[332654231,1721405504415,-500.0,0.00034109,14]
[332654232,1721405504424,-500.0,0.00034109,14]
[332654233,1721405504433,-1267.66,0.00034109,14]
[332654234,1721405504443,-1004.15,0.00034109,14]
[332654235,1721405504452,-500.0,0.00034109,14]
[332654236,1721405504461,-500.0,0.00034109,14]
[332654237,1721405504470,-500.0,0.00034109,14]
[332654238,1721405504479,-500.0,0.00034109,14]
[332654239,1721405504489,-524.96,0.00034109,14]
[332654240,1721405504498,-500.0,0.00034109,14]
[332654241,1721405504507,-672.0,0.00034109,14]
[332654242,1721405504516,-500.0,0.00034109,14]
[332654243,1721405504526,-500.0,0.00034109,14]
[332654244,1721405504535,-1604.34,0.00034109,14]
[332654245,1721405504544,-500.0,0.00034109,14]
[332654246,1721405504553,-2684.0,0.00034109,14]
[332654247,1721405504562,-1411.78,0.00034109,14]
[332654248,1721405504571,-500.0,0.00034109,14]
[332654249,1721405504580,-858.0,0.00034109,14]
[332654250,1721405504590,-292.78819464,0.00034109,14]
[332654251,1721405504599,-1259.18,0.00034109,14]
[332654252,1721405504609,-500.0,0.00034109,14]
[332654253,1721405504619,-500.0,0.00034109,14]
[332654254,1721405504628,-500.0,0.00034109,14]
[332654255,1721405504637,-928.26,0.00034109,14]
[332654256,1721405504646,-781.23,0.00034109,14]
[332654257,1721405504655,-500.0,0.00034109,14]
[332654258,1721405504665,-860.86,0.00034109,14]
[332654259,1721405504674,-756.27,0.00034109,14]
[332654260,1721405504684,-840.95,0.00034109,14]
[332654261,1721405504693,-579.58,0.00034109,14]
[332654262,1721405504703,-3829.75,0.00034109,14]
[332654263,1721405504712,-500.0,0.00034109,14]
[332654264,1721405504721,-992.53,0.00034109,14]
[332654265,1721405504731,-512.29,0.00034109,14]
[332654266,1721405504740,-500.0,0.00034109,14]
[332654267,1721405504750,-500.0,0.00034109,14]
[332654268,1721405504759,-500.0,0.00034109,14]
[332654269,1721405504768,-1687.45,0.00034109,14]
[332654270,1721405504778,-510.57526813,0.00034109,14]
[332654271,1721405504787,-554.18,0.00034109,14]
[332654272,1721405504797,-2139.51,0.00034109,14]
[332654273,1721405504806,-3678.46,0.00034109,14]
[332654274,1721405504816,-1957.81,0.00034109,14]
[332654275,1721405504826,-500.0,0.00034109,14]
[332654276,1721405504835,-1102.24,0.00034109,14]
[332654277,1721405504845,-500.0,0.00034109,14]
[332654278,1721405504854,-500.0,0.00034109,14]
[332654279,1721405504863,-500.0,0.00034109,14]
[332654280,1721405504872,-2659.19,0.00034109,14]
[332654281,1721405504881,-500.0,0.00034109,14]
[332654282,1721405504891,-500.0,0.00034109,14]
[332654283,1721405504900,-271.45880541,0.00034109,14]
[332654284,1721405504910,-748.36,0.00034109,14]
[332654285,1721405504920,-500.0,0.00034109,14]
[332654286,1721405504929,-500.0,0.00034109,14]
[332654287,1721405504938,-500.0,0.00034109,14]
[332654288,1721405504947,-500.0,0.00034109,14]
[332654289,1721405504956,-500.0,0.00034109,14]
[332654290,1721405504966,-1342.76,0.00034109,14]
[332654291,1721405504975,-1446.86,0.00034109,14]
[332654292,1721405504984,-2318.73,0.00034109,14]
[332654293,1721405504993,-500.0,0.00034109,14]
[332654294,1721405505003,-500.0,0.00034109,14]
[332654295,1721405505012,-500.0,0.00034109,14]
[332654296,1721405505021,-968.02,0.00034109,14]
[332654297,1721405505031,-500.0,0.00034109,14]
[332654298,1721405505040,-500.0,0.00034109,14]
[332654299,1721405505050,-500.0,0.00034109,14]
[332654300,1721405505059,-1215.42,0.00034109,14]
[332654301,1721405505068,-500.0,0.00034109,14]
[332654302,1721405505078,-1189.06,0.00034109,14]
[332654303,1721405505088,-2711.43,0.00034109,14]
[332654304,1721405505097,-518.27134261,0.00034109,14]
[332654305,1721405505107,-500.0,0.00034109,14]
[332654306,1721405505116,-500.0,0.00034109,14]
[332654307,1721405505126,-717.63,0.00034109,14]
[332654308,1721405505135,-591.06,0.00034109,14]
[332654309,1721405505144,-952.61,0.00034109,14]
[332654310,1721405505155,-2016.29,0.00034109,14]
[332654311,1721405505164,-500.0,0.00034109,14]
[332654312,1721405505174,-500.0,0.00034109,14]
[332654313,1721405505183,-837.41,0.00034109,14]
[332654314,1721405505193,-500.0,0.00034109,14]
[332654315,1721405505203,-517.97,0.00034109,14]
[332654316,1721405505213,-1315.92,0.00034109,14]
[332654317,1721405505223,-1189.37,0.00034109,14]
[332654318,1721405505234,-787.01,0.00034109,14]
[332654319,1721405505246,-853.41,0.00034109,14]
[332654320,1721405505259,-500.0,0.00034109,14]
[332654321,1721405505272,-618.57,0.00034109,14]
[332654322,1721405505282,-922.88,0.00034109,14]
[332654323,1721405505293,-500.0,0.00034109,14]
[332654324,1721405505304,-1426.93,0.00034109,14]
[332654325,1721405505315,-500.0,0.00034109,14]
[332654326,1721405505327,-309.28,0.00034109,14]
[332654327,1721405505338,-2121.44,0.00034109,14]
[332654328,1721405505350,-1492.61,0.00034109,14]
[332654329,1721405505361,-2060.02,0.00034109,14]
[332654330,1721405505370,-500.0,0.00034109,14]
[332654331,1721405505380,-1270.35,0.00034109,14]
[332654332,1721405505390,-1782.26,0.00034109,14]
[332654333,1721405505399,-3015.1,0.00034109,14]
[332654334,1721405505409,-500.0,0.00034109,14]
[332654335,1721405505421,-1363.34,0.00034109,14]
[332654336,1721405505430,-942.62,0.00034109,14]
[332654337,1721405505440,-1188.43,0.00034109,14]
[332654338,1721405505449,-546.01514581,0.00034109,14]
[332654339,1721405505458,-449.93711656,0.00034109,14]
[332654340,1721405505468,-2312.04,0.00034109,14]
[332654341,1721405505477,-500.0,0.00034109,14]
[332654342,1721405505486,-768.63,0.00034109,14]
[332654343,1721405505496,-500.0,0.00034109,14]
[332654344,1721405505505,-329.70377192,0.00034109,14]
[332654345,1721405505514,-569.91,0.00034109,14]
[332654346,1721405505523,-500.0,0.00034109,14]
[332654347,1721405505532,-504.27110636,0.00034109,14]
[332654348,1721405505542,-500.0,0.00034109,14]
[332654349,1721405505551,-1535.53,0.00034109,14]
[332654350,1721405505561,-1425.08,0.00034109,14]
[332654351,1721405505572,-500.0,0.00034109,14]
[332654352,1721405505582,-785.93,0.00034109,14]
[332654353,1721405505592,-728.38,0.00034109,14]
[332654354,1721405505601,-3290.05,0.00034109,14]
[332654355,1721405505610,-829.12,0.00034109,14]
[332654356,1721405505620,-500.0,0.00034109,14]
[332654357,1721405505631,-500.0,0.00034109,14]
[332654358,1721405505641,-918.05,0.00034109,14]
[332654359,1721405505650,-1257.94,0.00034109,14]
[332654360,1721405505661,-2459.5,0.00034109,14]
[332654361,1721405505671,-500.0,0.00034109,14]
[332654362,1721405505680,-500.0,0.00034109,14]
[332654363,1721405505690,-500.0,0.00034109,14]
[332654364,1721405505702,-798.81,0.00034109,14]
[332654365,1721405505712,-742.79,0.00034109,14]
[332654366,1721405505725,-500.0,0.00034109,14]
[332654367,1721405505735,-500.0,0.00034109,14]
[332654368,1721405505744,-1058.6,0.00034109,14]
[332654369,1721405505754,-559.06,0.00034109,14]
[332654370,1721405505763,-500.0,0.00034109,14]
[332654371,1721405505772,-983.06,0.00034109,14]
[332654372,1721405505782,-500.0,0.00034109,14]
[332654373,1721405505792,-1339.89,0.00034109,14]
[332654374,1721405505802,-532.01,0.00034109,14]
[332654375,1721405505812,-501.72,0.00034109,14]
[332654376,1721405505822,-984.21,0.00034109,14]
[332654377,1721405505832,-708.71,0.00034109,14]
[332654378,1721405505841,-4177.7,0.00034109,14]
[332654379,1721405505850,-1412.03,0.00034109,14]
[332654380,1721405505859,-1608.43,0.00034109,14]
[332654381,1721405505869,-620.3,0.00034109,14]
[332654382,1721405505880,-500.0,0.00034109,14]
[332654383,1721405505890,-667.6,0.00034109,14]
[332654384,1721405505899,-541.83,0.00034109,14]
[332654385,1721405505910,-1153.89,0.00034109,14]
[332654386,1721405505919,-500.0,0.00034109,14]
[332654387,1721405505928,-4221.72,0.00034109,14]
[332654388,1721405505937,-500.0,0.00034109,14]
[332654389,1721405505946,-500.0,0.00034109,14]
[332654390,1721405505955,-990.52,0.00034109,14]
[332654391,1721405505964,-500.0,0.00034109,14]
[332654392,1721405505974,-2019.59,0.00034109,14]
[332654393,1721405505983,-1099.48,0.00034109,14]
[332654394,1721405505993,-500.0,0.00034109,14]
[332654395,1721405506002,-500.0,0.00034109,14]
[332654396,1721405506011,-1257.09,0.00034109,14]
[332654397,1721405506021,-500.0,0.00034109,14]
[332654398,1721405506030,-547.27,0.00034109,14]
[332654399,1721405506039,-500.0,0.00034109,14]
[332654400,1721405506048,-2716.85,0.00034109,14]
[332654401,1721405506058,-1599.77,0.00034109,14]
[332654402,1721405506067,-500.0,0.00034109,14]
[332654403,1721405506075,-719.64,0.00034109,14]
[332654404,1721405506084,-857.73,0.00034109,14]
[332654405,1721405506094,-1986.48,0.00034109,14]
[332654406,1721405506103,-938.89,0.00034109,14]
[332654407,1721405506112,-500.0,0.00034109,14]
[332654408,1721405506122,-1434.26,0.00034109,14]
[332654409,1721405506131,-700.01,0.00034109,14]
[332654410,1721405506140,-500.0,0.00034109,14]
[332654411,1721405506149,-500.0,0.00034109,14]
[332654412,1721405506160,-500.0,0.00034109,14]
[332654413,1721405506169,-1795.89,0.00034109,14]
[332654414,1721405506179,-739.71,0.00034109,14]
[332654415,1721405506188,-500.0,0.00034109,14]
[332654416,1721405506197,-925.24,0.00034109,14]
[332654417,1721405506207,-500.0,0.00034109,14]
[332654418,1721405506216,-2641.15,0.00034109,14]
[332654419,1721405506225,-856.94,0.00034109,14]
[332654420,1721405506236,-690.03,0.00034109,14]
[332654421,1721405506245,-500.0,0.00034109,14]
[332654422,1721405506256,-1022.79,0.00034109,14]
[332654423,1721405506267,-1025.98,0.00034109,14]
[332654424,1721405506276,-712.85,0.00034109,14]
[332654425,1721405506285,-500.0,0.00034109,14]
[332654426,1721405506295,-644.42,0.00034109,14]
[332654427,1721405506305,-847.33,0.00034109,14]
[332654428,1721405506315,-2189.59,0.00034109,14]
[332654429,1721405506326,-500.0,0.00034109,14]
[332654430,1721405506339,-500.0,0.00034109,14]
[332654431,1721405506349,-748.24,0.00034109,14]
[332654432,1721405506359,-500.0,0.00034109,14]
[332654433,1721405506369,-500.0,0.00034109,14]
[332654434,1721405506378,-2660.99,0.00034109,14]
[332654435,1721405506388,-500.0,0.00034109,14]
[332654436,1721405506397,-792.94,0.00034109,14]
[332654437,1721405506407,-1669.97,0.00034109,14]
[332654438,1721405506417,-500.0,0.00034109,14]
[332654439,1721405506426,-500.0,0.00034109,14]
[332654440,1721405506436,-650.68,0.00034109,14]
[332654441,1721405506445,-3200.91,0.00034109,14]
[332654442,1721405506455,-576.05,0.00034109,14]
[332654443,1721405506464,-1188.46,0.00034109,14]
[332654444,1721405506473,-524.24,0.00034109,14]
[332654445,1721405506482,-2101.33,0.00034109,14]
[332654446,1721405506492,-500.0,0.00034109,14]
[332654447,1721405506501,-3620.33,0.00034109,14]
[332654448,1721405506511,-724.14,0.00034109,14]
[332654449,1721405506520,-500.0,0.00034109,14]
[332654450,1721405506529,-500.0,0.00034109,14]
[332654451,1721405506539,-1606.46,0.00034109,14]
[332654452,1721405506548,-2849.42,0.00034109,14]
[332654453,1721405506558,-630.69704329,0.00034109,14]
[332654454,1721405506567,-735.51,0.00034109,14]
[332654455,1721405506577,-1136.35,0.00034109,14]
[332654456,1721405506586,-500.0,0.00034109,14]
[332654457,1721405506595,-2219.39,0.00034109,14]
[332654458,1721405506604,-3478.95,0.00034109,14]
[332654459,1721405506614,-1471.57,0.00034109,14]
[332654460,1721405506624,-500.0,0.00034109,14]
[332654461,1721405506633,-536.55,0.00034109,14]
[332654462,1721405506643,-619.21,0.00034109,14]
[332654463,1721405506652,-3703.31,0.00034109,14]
[332654464,1721405506662,-1121.26,0.00034109,14]
[332654465,1721405506671,-552.02,0.00034109,14]
[332654466,1721405506680,-500.0,0.00034109,14]
[332654467,1721405506689,-500.0,0.00034109,14]
[332654468,1721405506699,-1380.4,0.00034109,14]
[332654469,1721405506708,-1550.95,0.00034109,14]
[332654470,1721405506718,-500.0,0.00034109,14]
[332654471,1721405506727,-1560.94,0.00034109,14]
[332654472,1721405506737,-510.35151723,0.00034109,14]
[332654473,1721405506747,-522.62,0.00034109,14]
[332654474,1721405506756,-1049.36,0.00034109,14]
[332654475,1721405506766,-533.79,0.00034109,14]
[332654476,1721405506776,-1990.65,0.00034109,14]
[332654477,1721405506786,-1730.51,0.00034109,14]
[332654478,1721405506795,-551.36,0.00034109,14]
[332654479,1721405506805,-1111.98,0.00034109,14]
[332654480,1721405506814,-4326.01,0.00034109,14]
[332654481,1721405506823,-588.86,0.00034109,14]
[332654482,1721405506833,-281.00551981,0.00034109,14]
[332654483,1721405506843,-1572.72,0.00034109,14]
[332654484,1721405506852,-760.92,0.00034109,14]
[332654485,1721405506861,-1936.7,0.00034109,14]
[332654486,1721405506870,-500.0,0.00034109,14]
[332654487,1721405506880,-578.02481592,0.00034109,14]
[332654488,1721405506889,-2053.54,0.00034109,14]
[332654489,1721405506899,-2486.51,0.00034109,14]
[332654490,1721405506908,-4288.83,0.00034109,14]
[332654491,1721405506918,-500.0,0.00034109,14]
[332654492,1721405506927,-2391.82,0.00034109,14]
[332654493,1721405506937,-996.04,0.00034109,14]
[332654494,1721405506947,-702.75,0.00034109,14]
[332654495,1721405506956,-500.0,0.00034109,14]